[Event "Titled Tuesday Blitz April 26 Early 2022"]
[White "Khamdamova, Afruza"]
[Black "Omelja, Artem"]
[WhiteFideId "14210444"]
[BlackFideId "14119846"]
[WhiteElo "1660"]
[BlackElo "2382"]
[Result "0-1"]
[Round "09"]
[TimeControl "180+1"]
[Date "2022.04.26"]
[WhiteClock "0:00:17"]
[BlackClock "0:00:04"]

1. e4 {[%clk 0:03:00]}  c5 {[%clk 0:02:54]} 2. Nf3 {[%clk 0:03:00]}  e6 {[%clk 0:02:53]} 3. d4 {[%clk 0:03:00]}  cxd4 {[%clk 0:02:54]} 4. Nxd4 {[%clk 0:02:59]}  Nf6 {[%clk 0:02:55]} 5. Nc3 {[%clk 0:02:59]}  Nc6 {[%clk 0:02:53]} 6. Nxc6 {[%clk 0:02:59]}  bxc6 {[%clk 0:02:51]} 7. e5 {[%clk 0:02:59]}  Nd5 {[%clk 0:02:51]} 8. Ne4 {[%clk 0:02:59]}  Qc7 {[%clk 0:02:51]} 9. f4 {[%clk 0:02:59]}  Qb6 {[%clk 0:02:52]} 10. c4 {[%clk 0:02:59]}  Bb4+ {[%clk 0:02:53]} 11. Ke2 {[%clk 0:02:59]}  Ba6 {[%clk 0:02:53]} 12. Kf3 {[%clk 0:02:59]}  f5 {[%clk 0:02:54]} 13. exf6 {[%clk 0:02:56]}  Nxf6 {[%clk 0:02:53]} 14. c5 {[%clk 0:02:53]}  Bxc5 {[%clk 0:02:22]} 15. Nxc5 {[%clk 0:02:51]}  Bxf1 {[%clk 0:02:19]} 16. Na4 {[%clk 0:02:51]}  Qb5 {[%clk 0:01:51]} 17. Rxf1 {[%clk 0:02:51]}  Qh5+ {[%clk 0:01:51]} 18. Kf2 {[%clk 0:02:51]}  Ng4+ {[%clk 0:01:51]} 19. Ke1 {[%clk 0:02:50]}  Qh4+ {[%clk 0:01:35]} 20. g3 {[%clk 0:02:46]}  Qh3 {[%clk 0:01:28]} 21. Nc5 {[%clk 0:02:42]}  O-O {[%clk 0:01:15]} 22. Qe2 {[%clk 0:01:52]}  Nxh2 {[%clk 0:00:57]} 23. Rg1 {[%clk 0:01:44]}  d6 {[%clk 0:00:30]} 24. Ne4 {[%clk 0:01:42]}  Ng4 {[%clk 0:00:25]} 25. Ng5 {[%clk 0:01:39]}  Qh5 {[%clk 0:00:16]} 26. Qf3 {[%clk 0:01:19]}  h6 {[%clk 0:00:13]} 27. Rh1 {[%clk 0:01:17]}  Qxg5 {[%clk 0:00:09]} 28. fxg5 {[%clk 0:01:11]}  Rxf3 {[%clk 0:00:10]} 29. gxh6 {[%clk 0:01:11]}  gxh6 {[%clk 0:00:09]} 30. Bxh6 {[%clk 0:01:11]}  e5 {[%clk 0:00:02]} 31. Ke2 {[%clk 0:01:01]}  Rf2+ {[%clk 0:00:02]} 32. Kd3 {[%clk 0:01:00]}  d5 {[%clk 0:00:02]} 33. Bd2 {[%clk 0:00:53]}  Raf8 {[%clk 0:00:02]} 34. Rh4 {[%clk 0:00:52]}  R8f3+ {[%clk 0:00:02]} 35. Kc2 {[%clk 0:00:38]}  Ne3+ {[%clk 0:00:03]} 36. Kc3 {[%clk 0:00:29]}  Nf5+ {[%clk 0:00:03]} 37. Kc2 {[%clk 0:00:28]}  Nxh4 {[%clk 0:00:03]} 38. gxh4 {[%clk 0:00:29]}  Rg3 {[%clk 0:00:03]} 39. Rd1 {[%clk 0:00:24]}  Rgg2 {[%clk 0:00:03]} 40. Kc1 {[%clk 0:00:24]}  Rxd2 {[%clk 0:00:03]} 41. Rxd2 {[%clk 0:00:24]}  Rxd2 {[%clk 0:00:03]} 42. Kxd2 {[%clk 0:00:24]}  Kh7 {[%clk 0:00:04]} 43. Ke3 {[%clk 0:00:23]}  Kh6 {[%clk 0:00:05]} 44. Kf3 {[%clk 0:00:23]}  Kh5 {[%clk 0:00:05]} 45. Kg3 {[%clk 0:00:23]}  a5 {[%clk 0:00:06]} 46. b3 {[%clk 0:00:19]}  e4 {[%clk 0:00:04]} 47. a3 {[%clk 0:00:17]}  c5 {[%clk 0:00:04]} 0-1


[Site "https://www.chess.com"]

[Event "Titled Tuesday Blitz April 26 Early 2022"]
[White "Lauridsen, Jesper Morch"]
[Black "Bachmann, Axel"]
[WhiteFideId "1401890"]
[BlackFideId "3700488"]
[WhiteElo "2284"]
[BlackElo "2587"]
[Result "1-0"]
[Round "09"]
[TimeControl "180+1"]
[Date "2022.04.26"]
[WhiteClock "0:00:11"]
[BlackClock "0:00:32"]

1. f4 {[%clk 0:02:58]}  Nf6 {[%clk 0:02:57]} 2. Nf3 {[%clk 0:02:57]}  c5 {[%clk 0:02:55]} 3. e3 {[%clk 0:02:55]}  d6 {[%clk 0:02:54]} 4. d4 {[%clk 0:02:54]}  g6 {[%clk 0:02:35]} 5. d5 {[%clk 0:02:32]}  Bg7 {[%clk 0:02:34]} 6. c4 {[%clk 0:02:29]}  b5 {[%clk 0:02:30]} 7. cxb5 {[%clk 0:02:25]}  a6 {[%clk 0:02:30]} 8. b6 {[%clk 0:02:19]}  O-O {[%clk 0:02:29]} 9. Nc3 {[%clk 0:02:17]}  Nbd7 {[%clk 0:02:29]} 10. Be2 {[%clk 0:02:12]}  Nxb6 {[%clk 0:02:28]} 11. O-O {[%clk 0:02:11]}  a5 {[%clk 0:02:14]} 12. a4 {[%clk 0:02:07]}  Nfd7 {[%clk 0:02:11]} 13. e4 {[%clk 0:02:02]}  Nb8 {[%clk 0:02:09]} 14. Bb5 {[%clk 0:02:01]}  Na6 {[%clk 0:02:08]} 15. Bc6 {[%clk 0:01:55]}  Rb8 {[%clk 0:02:08]} 16. Qe2 {[%clk 0:01:48]}  Nb4 {[%clk 0:02:07]} 17. Bb5 {[%clk 0:01:37]}  Qc7 {[%clk 0:01:51]} 18. Be3 {[%clk 0:01:36]}  Bg4 {[%clk 0:01:42]} 19. Rad1 {[%clk 0:01:34]}  Rfc8 {[%clk 0:01:25]} 20. f5 {[%clk 0:01:27]}  Nd7 {[%clk 0:01:18]} 21. fxg6 {[%clk 0:01:22]}  hxg6 {[%clk 0:01:18]} 22. Bxd7 {[%clk 0:01:15]}  Qxd7 {[%clk 0:01:13]} 23. h3 {[%clk 0:01:14]}  Bxf3 {[%clk 0:01:10]} 24. Qxf3 {[%clk 0:01:14]}  Qe8 {[%clk 0:01:08]} 25. Rd2 {[%clk 0:01:08]}  c4 {[%clk 0:01:02]} 26. Rdf2 {[%clk 0:01:03]}  Bf6 {[%clk 0:00:52]} 27. e5 {[%clk 0:00:42]}  Bxe5 {[%clk 0:00:42]} 28. Qxf7+ {[%clk 0:00:40]}  Qxf7 {[%clk 0:00:42]} 29. Rxf7 {[%clk 0:00:41]}  Bf6 {[%clk 0:00:38]} 30. R7xf6 {[%clk 0:00:38]}  exf6 {[%clk 0:00:39]} 31. Rxf6 {[%clk 0:00:36]}  Kg7 {[%clk 0:00:23]} 32. Rxd6 {[%clk 0:00:30]}  Rd8 {[%clk 0:00:19]} 33. Bd4+ {[%clk 0:00:24]}  Kf7 {[%clk 0:00:18]} 34. Rf6+ {[%clk 0:00:23]}  Ke8 {[%clk 0:00:16]} 35. d6 {[%clk 0:00:22]}  g5 {[%clk 0:00:13]} 36. Nb5 {[%clk 0:00:17]}  Nd5 {[%clk 0:00:08]} 37. Re6+ {[%clk 0:00:17]}  Kd7 {[%clk 0:00:08]} 38. Re5 {[%clk 0:00:16]}  Kc6 {[%clk 0:00:07]} 39. Rxg5 {[%clk 0:00:09]}  Rd7 {[%clk 0:00:05]} 40. Na7+ {[%clk 0:00:08]}  Kxd6 {[%clk 0:00:02]} 41. Be5+ {[%clk 0:00:08]}  Ke6 {[%clk 0:00:02]} 42. Bxb8 {[%clk 0:00:08]}  Rb7 {[%clk 0:00:02]} 43. Nc6 {[%clk 0:00:07]}  Rb6 {[%clk 0:00:01]} 44. Re5+ {[%clk 0:00:07]}  Kf6 {[%clk 0:00:01]} 45. Rxd5 {[%clk 0:00:07]}  Rxc6 {[%clk 0:00:01]} 46. Bg3 {[%clk 0:00:06]}  Ke6 {[%clk 0:00:02]} 47. Rxa5 {[%clk 0:00:06]}  c3 {[%clk 0:00:02]} 48. bxc3 {[%clk 0:00:05]}  Rxc3 {[%clk 0:00:03]} 49. Kh2 {[%clk 0:00:05]}  Rb3 {[%clk 0:00:03]} 50. Ra6+ {[%clk 0:00:05]}  Kd5 {[%clk 0:00:03]} 51. a5 {[%clk 0:00:05]}  Kc5 {[%clk 0:00:03]} 52. Rb6 {[%clk 0:00:05]}  Rd3 {[%clk 0:00:02]} 53. Bf2+ {[%clk 0:00:04]}  Kc4 {[%clk 0:00:02]} 54. a6 {[%clk 0:00:04]}  Ra3 {[%clk 0:00:02]} 55. Rc6+ {[%clk 0:00:03]}  Kd5 {[%clk 0:00:02]} 56. Rf6 {[%clk 0:00:04]}  Ke5 {[%clk 0:00:03]} 57. Rh6 {[%clk 0:00:03]}  Ra4 {[%clk 0:00:03]} 58. Bg3+ {[%clk 0:00:03]}  Kf5 {[%clk 0:00:03]} 59. Rh5+ {[%clk 0:00:03]}  Kg6 {[%clk 0:00:04]} 60. Rd5 {[%clk 0:00:03]}  Rxa6 {[%clk 0:00:04]} 61. Rd6+ {[%clk 0:00:03]}  Rxd6 {[%clk 0:00:05]} 62. Bxd6 {[%clk 0:00:03]}  Kh5 {[%clk 0:00:05]} 63. Bc7 {[%clk 0:00:04]}  Kg5 {[%clk 0:00:06]} 64. Bb8 {[%clk 0:00:04]}  Kh4 {[%clk 0:00:07]} 65. g3+ {[%clk 0:00:04]}  Kh5 {[%clk 0:00:08]} 66. g4+ {[%clk 0:00:04]}  Kg5 {[%clk 0:00:09]} 67. Kg2 {[%clk 0:00:05]}  Kh4 {[%clk 0:00:10]} 68. Kf3 {[%clk 0:00:05]}  Kg5 {[%clk 0:00:10]} 69. Kg3 {[%clk 0:00:05]}  Kg6 {[%clk 0:00:11]} 70. h4 {[%clk 0:00:05]}  Kh6 {[%clk 0:00:12]} 71. Ba7 {[%clk 0:00:06]}  Kg6 {[%clk 0:00:13]} 72. Bc5 {[%clk 0:00:06]}  Kh6 {[%clk 0:00:14]} 73. Bb4 {[%clk 0:00:07]}  Kg6 {[%clk 0:00:14]} 74. Bc3 {[%clk 0:00:07]}  Kh6 {[%clk 0:00:15]} 75. Bb2 {[%clk 0:00:07]}  Kg6 {[%clk 0:00:16]} 76. Bc3 {[%clk 0:00:08]}  Kh7 {[%clk 0:00:17]} 77. g5 {[%clk 0:00:08]}  Kg6 {[%clk 0:00:18]} 78. Kg4 {[%clk 0:00:09]}  Kh7 {[%clk 0:00:19]} 79. Kh5 {[%clk 0:00:09]}  Kg8 {[%clk 0:00:19]} 80. g6 {[%clk 0:00:09]}  Kf8 {[%clk 0:00:19]} 81. Kg5 {[%clk 0:00:09]}  Kg8 {[%clk 0:00:19]} 82. h5 {[%clk 0:00:10]}  Kf8 {[%clk 0:00:20]} 83. h6 {[%clk 0:00:10]}  Kg8 {[%clk 0:00:21]} 84. h7+ {[%clk 0:00:10]}  Kf8 {[%clk 0:00:22]} 85. h8=Q+ {[%clk 0:00:11]}  Ke7 {[%clk 0:00:23]} 86. Qh7+ {[%clk 0:00:11]}  Kd6 {[%clk 0:00:24]} 87. Qg7 {[%clk 0:00:11]}  Kc5 {[%clk 0:00:25]} 88. Qf6 {[%clk 0:00:12]}  Kc4 {[%clk 0:00:26]} 89. g7 {[%clk 0:00:12]}  Kb3 {[%clk 0:00:27]} 90. g8=Q+ {[%clk 0:00:12]}  Kc2 {[%clk 0:00:28]} 91. Qge6 {[%clk 0:00:11]}  Kd3 {[%clk 0:00:28]} 92. Qf3+ {[%clk 0:00:11]}  Kc2 {[%clk 0:00:29]} 93. Qee2+ {[%clk 0:00:11]}  Kb3 {[%clk 0:00:30]} 94. Be5+ {[%clk 0:00:11]}  Kb4 {[%clk 0:00:30]} 95. Qee4+ {[%clk 0:00:11]}  Kb5 {[%clk 0:00:30]} 96. Qd5+ {[%clk 0:00:11]}  Kb6 {[%clk 0:00:31]} 97. Qfb3+ {[%clk 0:00:11]}  Ka7 {[%clk 0:00:32]} 98. Qdb7# {[%clk 0:00:11]} 1-0


[Site "https://www.chess.com"]

[Event "Titled Tuesday Blitz April 26 Early 2022"]
[White "Le, Tuan Minh"]
[Black "Pranav, V"]
[WhiteFideId "12401153"]
[BlackFideId "25060783"]
[WhiteElo "2450"]
[BlackElo "2349"]
[Result "1-0"]
[Round "09"]
[TimeControl "180+1"]
[Date "2022.04.26"]
[WhiteClock "0:00:18"]
[BlackClock "0:00:10"]

1. d4 {[%clk 0:03:00]}  Nf6 {[%clk 0:02:59]} 2. Nf3 {[%clk 0:03:01]}  b6 {[%clk 0:02:59]} 3. Bf4 {[%clk 0:03:01]}  Bb7 {[%clk 0:03:00]} 4. e3 {[%clk 0:03:02]}  g6 {[%clk 0:03:00]} 5. Nbd2 {[%clk 0:03:02]}  Bg7 {[%clk 0:03:01]} 6. Be2 {[%clk 0:03:02]}  O-O {[%clk 0:03:02]} 7. O-O {[%clk 0:03:03]}  d6 {[%clk 0:03:02]} 8. a4 {[%clk 0:03:03]}  Nbd7 {[%clk 0:03:03]} 9. a5 {[%clk 0:03:04]}  a6 {[%clk 0:03:03]} 10. axb6 {[%clk 0:03:03]}  cxb6 {[%clk 0:03:04]} 11. h3 {[%clk 0:03:04]}  Re8 {[%clk 0:03:04]} 12. Bh2 {[%clk 0:03:03]}  e5 {[%clk 0:03:04]} 13. Nc4 {[%clk 0:03:04]}  Qc7 {[%clk 0:02:55]} 14. dxe5 {[%clk 0:03:03]}  dxe5 {[%clk 0:02:56]} 15. Qd6 {[%clk 0:03:03]}  Qc8 {[%clk 0:02:24]} 16. Nfxe5 {[%clk 0:02:28]}  Nxe5 {[%clk 0:02:15]} 17. Bxe5 {[%clk 0:02:21]}  Ne4 {[%clk 0:01:57]} 18. Qd4 {[%clk 0:02:21]}  Rxe5 {[%clk 0:01:40]} 19. Nxe5 {[%clk 0:02:22]}  Qc7 {[%clk 0:01:41]} 20. f4 {[%clk 0:02:13]}  Ng3 {[%clk 0:01:31]} 21. Rf2 {[%clk 0:01:46]}  Ne4 {[%clk 0:01:22]} 22. Rff1 {[%clk 0:01:42]}  Ng3 {[%clk 0:01:22]} 23. Qc4 {[%clk 0:01:36]}  Qe7 {[%clk 0:00:58]} 24. Rfe1 {[%clk 0:01:24]}  Rc8 {[%clk 0:00:50]} 25. Qb3 {[%clk 0:00:58]}  Bxe5 {[%clk 0:00:41]} 26. fxe5 {[%clk 0:00:59]}  Qxe5 {[%clk 0:00:41]} 27. Bd3 {[%clk 0:01:00]}  b5 {[%clk 0:00:38]} 28. Qb4 {[%clk 0:00:57]}  h5 {[%clk 0:00:34]} 29. Qf4 {[%clk 0:00:57]}  Qxf4 {[%clk 0:00:28]} 30. exf4 {[%clk 0:00:58]}  h4 {[%clk 0:00:29]} 31. Re7 {[%clk 0:00:57]}  Bd5 {[%clk 0:00:28]} 32. Rxa6 {[%clk 0:00:57]}  Bc4 {[%clk 0:00:29]} 33. Kf2 {[%clk 0:00:31]}  Bxd3 {[%clk 0:00:28]} 34. cxd3 {[%clk 0:00:32]}  Rc2+ {[%clk 0:00:29]} 35. Kf3 {[%clk 0:00:33]}  Rxb2 {[%clk 0:00:30]} 36. Ra8+ {[%clk 0:00:31]}  Kg7 {[%clk 0:00:26]} 37. Raa7 {[%clk 0:00:31]}  Kf6 {[%clk 0:00:17]} 38. Rxf7+ {[%clk 0:00:32]}  Ke6 {[%clk 0:00:18]} 39. Rg7 {[%clk 0:00:31]}  Kf6 {[%clk 0:00:15]} 40. Raf7+ {[%clk 0:00:31]}  Ke6 {[%clk 0:00:15]} 41. Rb7 {[%clk 0:00:31]}  Kf6 {[%clk 0:00:14]} 42. Rgc7 {[%clk 0:00:31]}  Ke6 {[%clk 0:00:13]} 43. Rc6+ {[%clk 0:00:29]}  Kd5 {[%clk 0:00:14]} 44. Rxg6 {[%clk 0:00:30]}  Nh1 {[%clk 0:00:14]} 45. f5 {[%clk 0:00:17]}  Rf2+ {[%clk 0:00:11]} 46. Kg4 {[%clk 0:00:17]}  Rxg2+ {[%clk 0:00:11]} 47. Kxh4 {[%clk 0:00:18]}  Rf2 {[%clk 0:00:09]} 48. Rxb5+ {[%clk 0:00:18]}  Kd4 {[%clk 0:00:10]} 49. f6 {[%clk 0:00:18]} 1-0


[Site "https://www.chess.com"]

[Event "Titled Tuesday Blitz April 26 Early 2022"]
[White "Leiva, Gianmarco"]
[Black "Myshakov, Fyodor"]
[WhiteFideId "3804399"]
[BlackFideId "14111284"]
[WhiteElo "2323"]
[BlackElo "2310"]
[Result "1-0"]
[Round "09"]
[TimeControl "180+1"]
[Date "2022.04.26"]
[WhiteClock "0:00:04"]
[BlackClock "0:00:04"]

1. e4 {[%clk 0:02:56]}  c6 {[%clk 0:02:59]} 2. d4 {[%clk 0:02:56]}  d5 {[%clk 0:02:47]} 3. e5 {[%clk 0:02:55]}  Bf5 {[%clk 0:02:43]} 4. Nf3 {[%clk 0:02:52]}  e6 {[%clk 0:02:42]} 5. Be2 {[%clk 0:02:52]}  Nd7 {[%clk 0:02:41]} 6. O-O {[%clk 0:02:52]}  Ne7 {[%clk 0:02:42]} 7. a4 {[%clk 0:02:52]}  h6 {[%clk 0:02:41]} 8. a5 {[%clk 0:02:52]}  a6 {[%clk 0:02:40]} 9. Bd2 {[%clk 0:02:47]}  Bh7 {[%clk 0:02:40]} 10. Bb4 {[%clk 0:02:47]}  Ng6 {[%clk 0:02:38]} 11. Bxf8 {[%clk 0:02:46]}  Ngxf8 {[%clk 0:02:38]} 12. Bd3 {[%clk 0:02:46]}  Bxd3 {[%clk 0:02:37]} 13. Qxd3 {[%clk 0:02:47]}  Ng6 {[%clk 0:02:37]} 14. b4 {[%clk 0:02:47]}  O-O {[%clk 0:02:35]} 15. Nbd2 {[%clk 0:02:47]}  Nh4 {[%clk 0:02:30]} 16. Ne1 {[%clk 0:02:46]}  Nf5 {[%clk 0:02:29]} 17. c3 {[%clk 0:02:45]}  Qg5 {[%clk 0:02:24]} 18. g3 {[%clk 0:02:45]}  Rae8 {[%clk 0:02:21]} 19. Ng2 {[%clk 0:02:46]}  g6 {[%clk 0:02:18]} 20. Rab1 {[%clk 0:02:41]}  h5 {[%clk 0:02:13]} 21. Rb2 {[%clk 0:02:37]}  Kg7 {[%clk 0:02:12]} 22. Rfb1 {[%clk 0:02:30]}  f6 {[%clk 0:01:59]} 23. exf6+ {[%clk 0:02:15]}  Qxf6 {[%clk 0:01:54]} 24. f4 {[%clk 0:02:13]}  Nd6 {[%clk 0:01:49]} 25. Nf3 {[%clk 0:02:06]}  Ne4 {[%clk 0:01:43]} 26. Re2 {[%clk 0:02:07]}  Qd8 {[%clk 0:01:35]} 27. Rbe1 {[%clk 0:02:07]}  Ndf6 {[%clk 0:01:35]} 28. Ne3 {[%clk 0:01:55]}  Qe7 {[%clk 0:01:32]} 29. Nd1 {[%clk 0:01:55]}  Rh8 {[%clk 0:01:28]} 30. Nb2 {[%clk 0:01:53]}  Qc7 {[%clk 0:01:23]} 31. Na4 {[%clk 0:01:53]}  h4 {[%clk 0:01:21]} 32. Nxh4 {[%clk 0:01:37]}  Rxh4 {[%clk 0:01:20]} 33. gxh4 {[%clk 0:01:37]}  Qxf4 {[%clk 0:01:21]} 34. Nc5 {[%clk 0:01:34]}  Qxh4 {[%clk 0:01:04]} 35. Nxe4 {[%clk 0:01:08]}  Nxe4 {[%clk 0:01:00]} 36. Rf1 {[%clk 0:01:05]}  Qg4+ {[%clk 0:00:49]} 37. Rg2 {[%clk 0:01:05]}  Qh5 {[%clk 0:00:42]} 38. Qe3 {[%clk 0:01:05]}  Rf8 {[%clk 0:00:39]} 39. Rxf8 {[%clk 0:01:00]}  Kxf8 {[%clk 0:00:39]} 40. h3 {[%clk 0:00:55]}  Ke7 {[%clk 0:00:27]} 41. c4 {[%clk 0:00:38]}  g5 {[%clk 0:00:22]} 42. c5 {[%clk 0:00:33]}  Qh4 {[%clk 0:00:17]} 43. Kh2 {[%clk 0:00:29]}  Qh8 {[%clk 0:00:14]} 44. Rg1 {[%clk 0:00:08]}  Qf6 {[%clk 0:00:13]} 45. Kg2 {[%clk 0:00:08]}  Qh8 {[%clk 0:00:09]} 46. Rf1 {[%clk 0:00:07]}  Qg7 {[%clk 0:00:09]} 47. Kh2 {[%clk 0:00:03]}  g4 {[%clk 0:00:07]} 48. Qf4 {[%clk 0:00:04]}  g3+ {[%clk 0:00:07]} 49. Kg2 {[%clk 0:00:04]}  Ke8 {[%clk 0:00:04]} 50. Qb8+ {[%clk 0:00:04]} 1-0


[Site "https://www.chess.com"]

[Event "Titled Tuesday Blitz April 26 Early 2022"]
[White "Li, Ben"]
[Black "Akrakan"]
[WhiteFideId "2089980"]
[WhiteElo "2267"]
[BlackElo "2095"]
[Result "1-0"]
[Round "09"]
[TimeControl "180+1"]
[Date "2022.04.26"]
[WhiteClock "0:00:21"]
[BlackClock "0:01:03"]

1. d4 {[%clk 0:02:52]}  d5 {[%clk 0:02:59]} 2. Nf3 {[%clk 0:02:51]}  Nf6 {[%clk 0:02:59]} 3. c4 {[%clk 0:02:52]}  e6 {[%clk 0:02:59]} 4. Nc3 {[%clk 0:02:45]}  Be7 {[%clk 0:02:58]} 5. Bf4 {[%clk 0:02:44]}  O-O {[%clk 0:02:57]} 6. a3 {[%clk 0:02:44]}  c6 {[%clk 0:02:52]} 7. e3 {[%clk 0:02:43]}  Ne4 {[%clk 0:02:52]} 8. Bd3 {[%clk 0:02:41]}  f5 {[%clk 0:02:52]} 9. O-O {[%clk 0:02:41]}  Nd7 {[%clk 0:02:51]} 10. h3 {[%clk 0:02:36]}  Ndf6 {[%clk 0:02:47]} 11. Ne2 {[%clk 0:02:34]}  Bd7 {[%clk 0:02:46]} 12. Bh2 {[%clk 0:02:28]}  Be8 {[%clk 0:02:43]} 13. Ne5 {[%clk 0:02:27]}  Bh5 {[%clk 0:02:38]} 14. f3 {[%clk 0:02:27]}  Nd6 {[%clk 0:02:38]} 15. Nf4 {[%clk 0:02:22]}  Bf7 {[%clk 0:02:21]} 16. cxd5 {[%clk 0:02:11]}  exd5 {[%clk 0:02:17]} 17. Qc2 {[%clk 0:01:59]}  g5 {[%clk 0:02:04]} 18. Ne2 {[%clk 0:01:58]}  Bg6 {[%clk 0:02:04]} 19. b4 {[%clk 0:01:41]}  Rc8 {[%clk 0:02:03]} 20. a4 {[%clk 0:01:32]}  Qe8 {[%clk 0:02:03]} 21. Rab1 {[%clk 0:01:28]}  Nd7 {[%clk 0:02:01]} 22. Rfc1 {[%clk 0:01:21]}  Nxe5 {[%clk 0:01:57]} 23. Bxe5 {[%clk 0:00:57]}  Nf7 {[%clk 0:01:56]} 24. Bh2 {[%clk 0:00:57]}  Bd6 {[%clk 0:01:56]} 25. Qd2 {[%clk 0:00:51]}  Bxh2+ {[%clk 0:01:54]} 26. Kxh2 {[%clk 0:00:52]}  Nd6 {[%clk 0:01:53]} 27. b5 {[%clk 0:00:51]}  cxb5 {[%clk 0:01:45]} 28. Rxc8 {[%clk 0:00:52]}  Qxc8 {[%clk 0:01:41]} 29. axb5 {[%clk 0:00:53]}  Nc4 {[%clk 0:01:38]} 30. Bxc4 {[%clk 0:00:47]}  Qxc4 {[%clk 0:01:35]} 31. b6 {[%clk 0:00:42]}  a6 {[%clk 0:01:27]} 32. Rc1 {[%clk 0:00:30]}  Qb5 {[%clk 0:01:25]} 33. Qa2 {[%clk 0:00:30]}  Qxb6 {[%clk 0:01:22]} 34. Qxd5+ {[%clk 0:00:23]}  Kg7 {[%clk 0:01:21]} 35. Qe5+ {[%clk 0:00:21]}  Kh6 {[%clk 0:01:19]} 36. Rc7 {[%clk 0:00:21]}  Rf6 {[%clk 0:01:14]} 37. h4 {[%clk 0:00:21]}  gxh4 {[%clk 0:01:08]} 38. Qf4+ {[%clk 0:00:20]}  Kh5 {[%clk 0:01:05]} 39. g4+ {[%clk 0:00:21]}  hxg3+ {[%clk 0:01:03]} 40. Nxg3# {[%clk 0:00:21]} 1-0


[Site "https://www.chess.com"]

[Event "Titled Tuesday Blitz April 26 Early 2022"]
[White "Ljukin, Sergei"]
[Black "Prohorov, Olexandr"]
[WhiteFideId "14102200"]
[BlackFideId "14105578"]
[WhiteElo "2312"]
[BlackElo "1993"]
[Result "1/2-1/2"]
[Round "09"]
[TimeControl "180+1"]
[Date "2022.04.26"]
[WhiteClock "0:00:11"]
[BlackClock "0:00:08"]

1. e4 {[%clk 0:02:55]}  c5 {[%clk 0:02:55]} 2. Nf3 {[%clk 0:02:55]}  e6 {[%clk 0:02:54]} 3. d4 {[%clk 0:02:55]}  cxd4 {[%clk 0:02:55]} 4. Nxd4 {[%clk 0:02:56]}  Qb6 {[%clk 0:02:55]} 5. c3 {[%clk 0:02:54]}  Bc5 {[%clk 0:02:52]} 6. Na3 {[%clk 0:02:51]}  Bxa3 {[%clk 0:02:43]} 7. bxa3 {[%clk 0:02:50]}  Nc6 {[%clk 0:02:44]} 8. Nb5 {[%clk 0:02:41]}  Nf6 {[%clk 0:02:25]} 9. Nd6+ {[%clk 0:02:05]}  Ke7 {[%clk 0:02:25]} 10. Nc4 {[%clk 0:01:59]}  Qc7 {[%clk 0:02:25]} 11. Bd3 {[%clk 0:01:57]}  b5 {[%clk 0:02:20]} 12. Ne3 {[%clk 0:01:57]}  Bb7 {[%clk 0:02:17]} 13. a4 {[%clk 0:01:55]}  a6 {[%clk 0:01:45]} 14. O-O {[%clk 0:01:37]}  Ne5 {[%clk 0:01:41]} 15. Ba3+ {[%clk 0:01:01]}  d6 {[%clk 0:01:40]} 16. axb5 {[%clk 0:01:01]}  axb5 {[%clk 0:01:31]} 17. Bb4 {[%clk 0:01:01]}  Nxd3 {[%clk 0:01:27]} 18. Qxd3 {[%clk 0:01:00]}  Bxe4 {[%clk 0:01:28]} 19. Qxb5 {[%clk 0:00:57]}  Rhb8 {[%clk 0:01:24]} 20. Qe2 {[%clk 0:00:56]}  Kf8 {[%clk 0:01:17]} 21. Rfd1 {[%clk 0:00:51]}  Rd8 {[%clk 0:01:07]} 22. Nc4 {[%clk 0:00:50]}  Kg8 {[%clk 0:00:57]} 23. Nxd6 {[%clk 0:00:49]}  Bc6 {[%clk 0:00:48]} 24. f3 {[%clk 0:00:31]}  Nd5 {[%clk 0:00:39]} 25. Ne4 {[%clk 0:00:26]}  Nxb4 {[%clk 0:00:33]} 26. cxb4 {[%clk 0:00:26]}  Qb6+ {[%clk 0:00:31]} 27. Qf2 {[%clk 0:00:19]}  Qxb4 {[%clk 0:00:30]} 28. Qc5 {[%clk 0:00:15]}  Rxd1+ {[%clk 0:00:19]} 29. Rxd1 {[%clk 0:00:14]}  Qxc5+ {[%clk 0:00:10]} 30. Nxc5 {[%clk 0:00:14]}  Kf8 {[%clk 0:00:11]} 31. a4 {[%clk 0:00:14]}  Bxa4 {[%clk 0:00:08]} 32. Nxa4 {[%clk 0:00:11]}  Rxa4 {[%clk 0:00:08]} 33. h3 {[%clk 0:00:11]}  Ke7 {[%clk 0:00:09]} 34. Rb1 {[%clk 0:00:11]}  Ra2 {[%clk 0:00:09]} 35. Rb7+ {[%clk 0:00:11]}  Kf6 {[%clk 0:00:09]} 36. Rb5 {[%clk 0:00:11]}  Ke7 {[%clk 0:00:08]} 1/2-1/2


[Site "https://www.chess.com"]

[Event "Titled Tuesday Blitz April 26 Early 2022"]
[White "Mangialardo, Tiago Carvalho"]
[Black "Kosteniuk, Alexandra"]
[WhiteFideId "2130718"]
[BlackFideId "4128125"]
[WhiteElo "2089"]
[BlackElo "2469"]
[Result "0-1"]
[Round "09"]
[TimeControl "180+1"]
[Date "2022.04.26"]
[WhiteClock "0:00:02"]
[BlackClock "0:02:25"]

1. e4 {[%clk 0:03:00]}  d6 {[%clk 0:02:59]} 2. d4 {[%clk 0:03:00]}  Nf6 {[%clk 0:03:00]} 3. Nd2 {[%clk 0:03:00]}  c5 {[%clk 0:02:59]} 4. c3 {[%clk 0:02:59]}  g6 {[%clk 0:02:58]} 5. f4 {[%clk 0:02:57]}  Bg7 {[%clk 0:02:58]} 6. Ngf3 {[%clk 0:02:57]}  O-O {[%clk 0:02:57]} 7. e5 {[%clk 0:02:58]}  Nd5 {[%clk 0:02:57]} 8. Nb3 {[%clk 0:02:56]}  cxd4 {[%clk 0:02:53]} 9. cxd4 {[%clk 0:02:56]}  Nc6 {[%clk 0:02:53]} 10. Bd3 {[%clk 0:02:50]}  a5 {[%clk 0:02:52]} 11. a4 {[%clk 0:02:15]}  Ncb4 {[%clk 0:02:52]} 12. Bb1 {[%clk 0:02:07]}  dxe5 {[%clk 0:02:50]} 13. fxe5 {[%clk 0:02:08]}  f6 {[%clk 0:02:48]} 14. O-O {[%clk 0:02:01]}  Bg4 {[%clk 0:02:48]} 15. Qe1 {[%clk 0:00:51]}  Bxf3 {[%clk 0:02:46]} 16. Rxf3 {[%clk 0:00:49]}  fxe5 {[%clk 0:02:44]} 17. Rxf8+ {[%clk 0:00:37]}  Qxf8 {[%clk 0:02:44]} 18. dxe5 {[%clk 0:00:37]}  Qb8 {[%clk 0:02:44]} 19. e6 {[%clk 0:00:15]}  Qa7+ {[%clk 0:02:43]} 20. Kh1 {[%clk 0:00:15]}  Rf8 {[%clk 0:02:43]} 21. Be4 {[%clk 0:00:08]}  Qa6 {[%clk 0:02:40]} 22. Bg5 {[%clk 0:00:06]}  Qxe6 {[%clk 0:02:39]} 23. Rd1 {[%clk 0:00:05]}  Qe5 {[%clk 0:02:37]} 24. Bh4 {[%clk 0:00:03]}  Qxb2 {[%clk 0:02:31]} 25. Nc5 {[%clk 0:00:02]}  Nc3 {[%clk 0:02:29]} 26. Rc1 {[%clk 0:00:01]}  Nxe4 {[%clk 0:02:25]} 27. Nxe4 {[%clk 0:00:02]}  Nd3 {[%clk 0:02:25]} 0-1


[Site "https://www.chess.com"]